fUSD/lending_fUSD_20250407
["ID","MTS","AMOUNT","RATE_DAILY","PERIOD"]
[357376643,1744023057192,-500.0,0.00052054,120]
[357376644,1744023057202,-500.0,0.00052054,120]
[357376645,1744023057211,-500.0,0.00052054,120]
[357376646,1744023057220,-1074.53,0.00052054,120]
[357376647,1744023057229,-1701.55,0.00052054,120]
[357376648,1744023057238,-769.46,0.00052054,120]
[357376649,1744023057248,-641.56,0.00052054,120]
[357376650,1744023057257,-500.0,0.00052054,120]
[357376651,1744023057266,-500.0,0.00052073,10]
[357376652,1744023057275,-570.92085305,0.00052128,47]
[357376653,1744023057285,-1000.0,0.00052137,45]
[357376654,1744023057294,-150.0,0.00052163,7]
[357376655,1744023057462,-150.0,0.00052176,7]
[357376656,1744023057471,-151.0,0.00052197,2]
[357376657,1744023057480,-200.0,0.00052197,2]
[357376658,1744023057489,-598.37,0.00052217,120]
[357376659,1744023057498,-598.37,0.00052227,120]
[357376660,1744023057507,-328.9258,0.00052228,2]
[357376661,1744023057517,-83263.70924357,0.00052228,2]
[357376662,1744023058835,-500.0,0.00043863,120]
[357376663,1744023058844,-253.6,0.00043863,120]
[357376664,1744023058856,-177.28206983,0.00043863,120]
[357376665,1744023058866,-228.67697072,0.00043863,120]
[357376666,1744023058875,-264.48095955,0.00052054,120]
[357376667,1744023058887,-235.51904045,0.00052054,120]
[357376668,1744023058896,-17.774322,0.00052228,2]
[357376669,1744023058907,-1236.835,0.00052228,2]
[357376670,1744023058992,-855.97305667,0.00052228,2]
[357376671,1744023059004,-214000.72917776,0.00052228,2]
[357376672,1744023059013,-1165.2725,0.00052228,2]
[357376673,1744023059023,-24307.64442353,0.00052228,30]
[357376674,1744023059033,-188.11341176,0.00052228,2]
[357376675,1744023059042,-150.0,0.0005223,7]
[357376676,1744023059051,-542.52468396,0.0005225,120]
[357376677,1744023059061,-423.14850224,0.00052312,2]
[357376678,1744023059072,-598.37,0.00052326,120]
[357376679,1744023059081,-598.37,0.00052327,120]
[357376680,1744023059091,-500.0,0.00052328,120]
[357376681,1744023059105,-518.85442114,0.00052328,120]
[357376682,1744023059115,-500.0,0.00052328,120]
[357376683,1744023059125,-516.87,0.00052328,120]
[357376684,1744023059134,-534.01117426,0.00052328,120]
[357376685,1744023059144,-500.0,0.00052328,120]
[357376686,1744023059153,-500.0,0.00052328,120]
[357376687,1744023059163,-759.89,0.00052328,120]
[357376688,1744023059172,-500.0,0.00052328,120]
[357376689,1744023059181,-500.0,0.00052328,120]
[357376690,1744023059191,-500.0,0.00052328,120]
[357376691,1744023059200,-500.0,0.00052328,120]
[357376692,1744023059210,-500.0,0.00052328,120]
[357376693,1744023059219,-500.0,0.00052328,120]
[357376694,1744023059228,-502.93839135,0.00052328,120]
[357376695,1744023059237,-500.0,0.00052328,120]
[357376696,1744023059248,-500.0,0.00052328,120]
[357376697,1744023059257,-500.0,0.00052328,120]
[357376698,1744023059267,-500.0,0.00052328,120]
[357376699,1744023059276,-500.0,0.00052328,120]
[357376700,1744023059285,-500.0,0.00052328,120]
[357376701,1744023059504,-509.30790952,0.00052328,120]
[357376702,1744023059516,-500.0,0.00052328,120]
[357376703,1744023059526,-816.06,0.00052328,120]
[357376704,1744023059535,-500.0,0.00052328,120]
[357376705,1744023059546,-500.0,0.00052328,120]
[357376706,1744023059555,-540.23120519,0.00052328,120]
[357376707,1744023059565,-500.0,0.00052328,120]
[357376708,1744023059576,-500.0,0.00052328,120]
[357376709,1744023059586,-500.0,0.00052328,120]
[357376710,1744023059596,-525.42,0.00052328,120]
[357376711,1744023059606,-500.0,0.00052328,120]
[357376712,1744023059616,-500.0,0.00052328,120]
[357376713,1744023059626,-526.46,0.00052328,120]
[357376714,1744023059635,-500.0,0.00052328,120]
[357376715,1744023059645,-252.16807802,0.00052328,120]
[357376716,1744023059655,-500.0,0.00052328,120]
[357376717,1744023059664,-541.64,0.00052328,120]
[357376718,1744023059675,-500.0,0.00052328,120]
[357376719,1744023059685,-500.0,0.00052328,120]
[357376720,1744023059695,-500.0,0.00052328,120]
[357376721,1744023059705,-500.0,0.00052328,120]
[357376722,1744023059714,-500.0,0.00052328,120]
[357376723,1744023059723,-500.0,0.00052328,30]
[357376724,1744023059733,-500.0,0.00052328,120]
[357376725,1744023059742,-500.0,0.00052328,120]
[357376726,1744023059753,-242.51287777,0.00052328,120]
[357376727,1744023059763,-500.0,0.00052328,120]
[357376728,1744023059772,-500.0,0.00052328,120]
[357376729,1744023059783,-500.0,0.00052328,120]
[357376730,1744023059796,-500.0,0.00052328,120]
[357376731,1744023059806,-500.0,0.00052328,120]
[357376732,1744023059816,-500.0,0.00052328,120]
[357376733,1744023059833,-500.0,0.00052328,120]
[357376734,1744023059849,-500.0,0.00052328,120]
[357376735,1744023059863,-517.78444898,0.00052328,120]
[357376736,1744023059874,-500.0,0.00052328,120]
[357376737,1744023059884,-500.0,0.00052328,120]
[357376738,1744023059894,-500.0,0.00052328,120]
[357376739,1744023059903,-500.0,0.00052328,120]
[357376740,1744023059913,-500.0,0.00052328,120]
[357376741,1744023059922,-500.0,0.00052328,120]
[357376742,1744023059931,-500.0,0.00052328,120]
[357376743,1744023059940,-500.0,0.00052328,120]
[357376744,1744023059950,-500.0,0.00052328,120]
[357376745,1744023059960,-500.0,0.00052328,120]
[357376746,1744023059970,-500.0,0.00052328,120]
[357376747,1744023059980,-601.55,0.00052328,120]
[357376748,1744023059990,-500.0,0.00052328,120]
[357376749,1744023059999,-500.0,0.00052328,120]
[357376750,1744023060009,-500.0,0.00052328,120]
[357376751,1744023060018,-500.0,0.00052328,120]
[357376752,1744023060028,-500.0,0.00052328,120]
[357376753,1744023060038,-500.0,0.00052328,120]
[357376754,1744023060048,-500.0,0.00052328,120]
[357376755,1744023060060,-500.0,0.00052328,120]
[357376756,1744023060073,-500.0,0.00052328,120]
[357376757,1744023060084,-500.0,0.00052328,120]
[357376758,1744023060094,-993.97,0.00052328,120]
[357376759,1744023060104,-500.0,0.00052328,120]
[357376760,1744023060113,-500.0,0.00052328,120]
[357376761,1744023060123,-500.0,0.00052328,120]
[357376762,1744023060133,-500.0,0.00052328,120]
[357376763,1744023060143,-510.77461301,0.00052328,120]
[357376764,1744023060152,-500.0,0.00052328,120]
[357376765,1744023060162,-512.9,0.00052328,120]
[357376766,1744023060172,-500.0,0.00052328,120]
[357376767,1744023060181,-500.0,0.00052328,120]
[357376768,1744023060191,-500.0,0.00052328,120]
[357376769,1744023060202,-605.64692991,0.00052328,120]
[357376770,1744023060212,-500.0,0.00052328,120]
[357376771,1744023060222,-500.0,0.00052328,120]
[357376772,1744023060232,-591.7217235,0.00052328,120]
[357376773,1744023060242,-500.0,0.00052328,120]
[357376774,1744023060253,-500.0,0.00052328,120]
[357376775,1744023060262,-500.0,0.00052328,120]
[357376776,1744023060272,-500.0,0.00052328,120]
[357376777,1744023060282,-500.0,0.00052328,120]
[357376778,1744023060292,-500.0,0.00052328,120]
[357376779,1744023060302,-586.8477162,0.00052328,120]
[357376780,1744023060311,-500.0,0.00052328,120]
[357376781,1744023060322,-500.0,0.00052328,120]
[357376782,1744023060331,-500.0,0.00052328,120]
[357376783,1744023060341,-500.0,0.00052328,120]
[357376784,1744023060351,-500.0,0.00052328,120]
[357376785,1744023060360,-500.0,0.00052328,120]
[357376786,1744023060369,-376.93199946,0.00052328,120]
[357376787,1744023060378,-500.0,0.00052328,120]
[357376788,1744023060388,-544.86781765,0.00052328,120]
[357376789,1744023060397,-500.0,0.00052328,120]
[357376790,1744023060407,-508.10798838,0.00052328,120]
[357376791,1744023060415,-328.60130916,0.00052328,120]
[357376792,1744023060425,-500.0,0.00052328,120]
[357376793,1744023060434,-509.15,0.00052328,120]
[357376794,1744023060443,-500.0,0.00052328,120]
[357376795,1744023060453,-500.0,0.00052328,120]
[357376796,1744023060462,-500.0,0.00052328,120]
[357376797,1744023060471,-500.0,0.00052328,120]
[357376798,1744023060481,-500.0,0.00052328,120]
[357376799,1744023060490,-500.0,0.00052328,120]
[357376800,1744023060500,-500.0,0.00052328,120]
[357376801,1744023060510,-500.0,0.00052328,120]
[357376802,1744023060522,-500.0,0.00052328,120]
[357376803,1744023060531,-500.0,0.00052328,120]
[357376804,1744023060541,-500.0,0.00052328,120]
[357376805,1744023060551,-500.0,0.00052328,120]
[357376806,1744023060561,-500.0,0.00052328,120]
[357376807,1744023060572,-527.04142262,0.00052328,120]
[357376808,1744023060582,-500.0,0.00052328,120]
[357376809,1744023060591,-500.0,0.00052328,120]
[357376810,1744023060601,-500.0,0.00052328,120]
[357376811,1744023060610,-505.15398767,0.00052328,120]
[357376812,1744023060620,-500.0,0.00052328,120]
[357376813,1744023060630,-500.0,0.00052328,120]
[357376814,1744023060640,-392.61283609,0.00052328,120]
[357376815,1744023060650,-500.0,0.00052328,120]
[357376816,1744023060659,-500.0,0.00052328,120]
[357376817,1744023060669,-500.0,0.00052328,120]
[357376818,1744023060679,-500.0,0.00052328,120]
[357376819,1744023060689,-575.93395305,0.00052328,120]
[357376820,1744023060699,-500.0,0.00052328,120]
[357376821,1744023060710,-640.06,0.00052328,120]
[357376822,1744023060719,-500.0,0.00052328,120]
[357376823,1744023060729,-1068.89,0.00052328,120]
[357376824,1744023060738,-620.58,0.00052328,120]
[357376825,1744023060747,-500.0,0.00052328,120]
[357376826,1744023060757,-500.0,0.00052328,120]
[357376827,1744023060767,-500.0,0.00052328,120]
[357376828,1744023060776,-500.0,0.00052328,120]
[357376829,1744023060787,-500.0,0.00052328,120]
[357376830,1744023060800,-500.0,0.00052328,120]
[357376831,1744023060809,-500.0,0.00052328,120]
[357376832,1744023060819,-1020.79,0.00052328,120]
[357376833,1744023060832,-524.81155393,0.00052328,120]
[357376834,1744023060842,-500.0,0.00052328,120]
[357376835,1744023060851,-500.0,0.00052328,120]
[357376836,1744023060860,-500.0,0.00052328,120]
[357376837,1744023060871,-500.0,0.00052328,120]
[357376838,1744023060880,-539.02408818,0.00052328,120]
[357376839,1744023060890,-500.0,0.00052328,120]
[357376840,1744023060899,-622.84,0.00052328,120]
[357376841,1744023060908,-500.0,0.00052328,120]
[357376842,1744023060917,-500.0,0.00052328,120]
[357376843,1744023060927,-500.0,0.00052328,120]
[357376844,1744023060936,-918.95,0.00052328,120]
[357376845,1744023060946,-500.0,0.00052328,120]
[357376846,1744023060955,-243.67006171,0.00052328,120]
[357376847,1744023060965,-617.69,0.00052328,120]
[357376848,1744023060975,-500.0,0.00052328,120]
[357376849,1744023060984,-500.0,0.00052328,60]
[357376850,1744023060993,-500.0,0.00052328,120]
[357376851,1744023061003,-940.7,0.00052328,120]
[357376852,1744023061012,-500.0,0.00052328,120]
[357376853,1744023061021,-500.0,0.00052328,120]
[357376854,1744023061031,-500.0,0.00052328,120]
[357376855,1744023061040,-500.0,0.00052328,120]
[357376856,1744023061049,-823.2,0.00052328,120]
[357376857,1744023061058,-500.0,0.00052328,120]
[357376858,1744023061067,-500.0,0.00052328,120]
[357376859,1744023061078,-500.0,0.00052328,120]
[357376860,1744023061087,-500.0,0.00052328,120]
[357376861,1744023061097,-500.0,0.00052328,120]
[357376862,1744023061107,-500.0,0.00052328,120]
[357376863,1744023061116,-500.0,0.00052328,120]
[357376864,1744023061125,-500.0,0.00052328,120]
[357376865,1744023061134,-500.0,0.00052328,120]
[357376866,1744023061143,-500.0,0.00052328,120]
[357376867,1744023061152,-500.0,0.00052328,120]
[357376868,1744023061161,-500.0,0.00052328,120]
[357376869,1744023061171,-500.0,0.00052328,120]
[357376870,1744023061180,-500.0,0.00052328,120]
[357376871,1744023061189,-500.0,0.00052328,120]
[357376872,1744023061198,-500.0,0.00052328,120]
[357376873,1744023061207,-500.0,0.00052328,30]
[357376874,1744023061216,-500.0,0.00052328,120]
[357376875,1744023061225,-500.0,0.00052328,120]
[357376876,1744023061234,-500.0,0.00052328,120]
[357376877,1744023061243,-540.17804119,0.00052328,120]
[357376878,1744023061252,-500.0,0.00052328,120]
[357376879,1744023061261,-500.0,0.00052328,120]
[357376880,1744023061270,-861.85,0.00052328,120]
[357376881,1744023061279,-1297.45,0.00052328,120]
[357376882,1744023061290,-746.67,0.00052328,120]
[357376883,1744023061299,-500.0,0.00052328,120]
[357376884,1744023061308,-455.35,0.00052328,10]
[357376885,1744023061317,-500.0,0.00052328,120]
[357376886,1744023061328,-500.0,0.00052328,120]
[357376887,1744023061337,-500.0,0.00052328,120]
[357376888,1744023061346,-500.0,0.00052328,120]
[357376889,1744023061356,-397.08188837,0.00052328,120]
[357376890,1744023061365,-988.01,0.00052328,120]
[357376891,1744023061374,-500.0,0.00052328,120]
[357376892,1744023061383,-555.96485053,0.00052328,120]
[357376893,1744023061392,-555.94,0.00052328,120]
[357376894,1744023061401,-500.0,0.00052328,120]
[357376895,1744023061411,-520.55,0.00052328,120]
[357376896,1744023061420,-500.0,0.00052328,120]
[357376897,1744023061430,-500.0,0.00052328,120]
[357376898,1744023061439,-500.0,0.00052328,120]
[357376899,1744023061448,-511.33,0.00052328,120]
[357376900,1744023061457,-500.0,0.00052328,120]
[357376901,1744023061466,-500.0,0.00052328,120]
[357376902,1744023061476,-502.95613348,0.00052328,120]
[357376903,1744023061485,-500.0,0.00052328,30]
[357376904,1744023061495,-501.03,0.00052328,120]
[357376905,1744023061504,-500.0,0.00052328,120]
[357376906,1744023061513,-501.07,0.00052328,120]
[357376907,1744023061522,-500.0,0.00052328,120]
[357376908,1744023061532,-500.0,0.00052328,120]
[357376909,1744023061541,-500.0,0.00052328,120]
[357376910,1744023061551,-500.0,0.00052328,120]
[357376911,1744023061560,-500.0,0.00052328,120]
[357376912,1744023061569,-500.0,0.00052328,120]
[357376913,1744023061581,-892.51,0.00052328,120]
[357376914,1744023061592,-500.0,0.00052328,120]
[357376915,1744023061601,-500.0,0.00052328,120]
[357376916,1744023061610,-500.0,0.00052328,120]
[357376917,1744023061619,-500.0,0.00052328,120]
[357376918,1744023061630,-500.0,0.00052328,120]
[357376919,1744023061640,-500.0,0.00052328,120]
[357376920,1744023061649,-500.0,0.00052328,120]
[357376921,1744023061658,-500.0,0.00052328,120]
[357376922,1744023061668,-500.0,0.00052328,120]
[357376923,1744023061677,-556.0003383,0.00052328,120]
[357376924,1744023061686,-500.0,0.00052328,120]
[357376925,1744023061695,-660.54,0.00052328,120]
[357376926,1744023061704,-500.0,0.00052328,120]
[357376927,1744023061713,-500.0,0.00052328,120]
[357376928,1744023061723,-680.44,0.00052328,120]
[357376929,1744023061732,-500.0,0.00052328,120]
[357376930,1744023061742,-500.0,0.00052328,120]
[357376931,1744023061751,-500.0,0.00052328,120]
[357376932,1744023061761,-500.0,0.00052328,120]
[357376933,1744023061770,-500.0,0.00052328,120]
[357376934,1744023061780,-792.33,0.00052328,120]
[357376935,1744023061792,-537.74623911,0.00052328,120]
[357376936,1744023061803,-594.75,0.00052328,120]
[357376937,1744023061812,-500.0,0.00052328,30]
[357376938,1744023061823,-546.49,0.00052328,120]
[357376939,1744023061833,-500.0,0.00052328,120]
[357376940,1744023061842,-868.93,0.00052328,120]
[357376941,1744023061852,-500.0,0.00052328,120]
[357376942,1744023061861,-500.0,0.00052328,120]
[357376943,1744023061871,-500.0,0.00052328,120]
[357376944,1744023061882,-500.0,0.00052328,120]
[357376945,1744023061891,-513.73,0.00052328,120]
[357376946,1744023061901,-500.0,0.00052328,120]
[357376947,1744023062067,-975.08,0.00052328,120]
[357376948,1744023062080,-500.0,0.00052328,7]
[357376949,1744023062090,-500.0,0.00052328,120]
[357376950,1744023062098,-500.0,0.00052328,120]
[357376951,1744023062108,-500.0,0.00052328,120]
[357376952,1744023062118,-621.52753532,0.00052328,120]
[357376953,1744023062127,-578.07,0.00052328,120]
[357376954,1744023062136,-500.0,0.00052328,120]
[357376955,1744023062145,-795.47,0.00052328,120]
[357376956,1744023062155,-388.50601603,0.00052328,120]
[357376957,1744023062164,-565.93,0.00052328,120]
[357376958,1744023062173,-500.0,0.00052328,120]
[357376959,1744023062182,-500.0,0.00052328,120]
[357376960,1744023062191,-941.38,0.00052328,120]
[357376961,1744023062201,-500.0,0.00052328,120]
[357376962,1744023062211,-189.873309,0.00052328,120]
[357376963,1744023062222,-1048.38,0.00052328,120]
[357376964,1744023062231,-517.30131206,0.00052328,120]
[357376965,1744023062242,-500.0,0.00052328,120]
[357376966,1744023062251,-585.99,0.00052328,120]
[357376967,1744023062260,-500.0,0.00052328,120]
[357376968,1744023062269,-500.0,0.00052328,120]
[357376969,1744023062279,-500.0,0.00052328,120]
[357376970,1744023062289,-500.0,0.00052328,120]
[357376971,1744023062299,-500.0,0.00052328,120]
[357376972,1744023062308,-500.0,0.00052328,120]
[357376973,1744023062317,-802.32,0.00052328,120]
[357376974,1744023062327,-500.0,0.00052328,120]
[357376975,1744023062337,-500.0,0.00052328,120]
[357376976,1744023062346,-654.14,0.00052328,120]
[357376977,1744023062355,-500.0,0.00052328,120]
[357376978,1744023062364,-502.97,0.00052328,120]
[357376979,1744023062373,-585.48765425,0.00052328,120]
[357376980,1744023062382,-542.78190457,0.00052328,120]
[357376981,1744023062391,-500.0,0.00052328,120]
[357376982,1744023062402,-881.01,0.00052328,120]
[357376983,1744023062420,-500.0,0.00052328,120]
[357376984,1744023062434,-500.0,0.00052328,120]
[357376985,1744023062444,-500.0,0.00052328,120]
[357376986,1744023062453,-500.0,0.00052328,120]
[357376987,1744023062462,-500.0,0.00052328,120]
[357376988,1744023062471,-3968.759275,0.00052328,120]
[357376989,1744023062480,-500.0,0.00052328,120]
[357376990,1744023062489,-500.0,0.00052328,120]
[357376991,1744023062499,-500.0,0.00052328,120]
[357376992,1744023062508,-650.47,0.00052328,120]
[357376993,1744023062517,-500.0,0.00052328,120]
[357376994,1744023062527,-500.0,0.00052328,120]
[357376995,1744023062535,-500.0,0.00052328,120]
[357376996,1744023062545,-520.18,0.00052328,120]
[357376997,1744023062554,-650.5,0.00052328,120]
[357376998,1744023062564,-496.04022891,0.00052328,60]
[357376999,1744023062573,-394.76708408,0.00052328,120]
[357377000,1744023062583,-500.0,0.00052328,120]
[357377001,1744023062592,-500.0,0.00052328,120]
[357377002,1744023062602,-500.0,0.00052328,120]
[357377003,1744023062611,-500.0,0.00052328,120]
[357377004,1744023062620,-500.0,0.00052328,120]
[357377005,1744023062630,-773.91,0.00052328,120]
[357377006,1744023062639,-500.0,0.00052328,120]
[357377007,1744023062648,-500.0,0.00052328,120]
[357377008,1744023062657,-500.0,0.00052328,120]
[357377009,1744023062667,-686.31,0.00052328,120]
[357377010,1744023062676,-500.0,0.00052328,120]
[357377011,1744023062686,-929.14,0.00052328,120]
[357377012,1744023062696,-500.0,0.00052328,120]
[357377013,1744023062706,-684.26,0.00052328,120]
[357377014,1744023062716,-398.071568,0.00052328,120]
[357377015,1744023062725,-868.85,0.00052328,120]
[357377016,1744023062735,-685.86,0.00052328,120]
[357377017,1744023062744,-585.30335479,0.00052328,120]
[357377018,1744023062753,-543.17,0.00052328,120]
[357377019,1744023062763,-500.0,0.00052328,120]
[357377020,1744023062772,-500.0,0.00052328,120]
[357377021,1744023062782,-500.0,0.00052328,120]
[357377022,1744023062795,-500.0,0.00052328,120]
[357377023,1744023062805,-500.0,0.00052328,120]
[357377024,1744023062814,-500.0,0.00052328,120]
[357377025,1744023062827,-500.0,0.00052328,120]
[357377026,1744023062836,-500.0,0.00052328,120]
[357377027,1744023062846,-500.0,0.00052328,120]
[357377028,1744023062855,-500.0,0.00052328,120]
[357377029,1744023062866,-500.0,0.00052328,120]
[357377030,1744023062875,-563.24,0.00052328,120]
[357377031,1744023062885,-500.0,0.00052328,120]
[357377032,1744023062894,-500.0,0.00052328,120]
[357377033,1744023062903,-500.0,0.00052328,120]
[357377034,1744023062912,-500.0,0.00052328,120]
[357377035,1744023062922,-500.0,0.00052328,120]
[357377036,1744023062931,-500.0,0.00052328,120]
[357377037,1744023062941,-500.0,0.00052328,120]
[357377038,1744023062950,-500.0,0.00052328,120]
[357377039,1744023062959,-500.0,0.00052328,120]
[357377040,1744023062968,-553.29,0.00052328,120]
[357377041,1744023062978,-640.26126438,0.00052328,120]
[357377042,1744023062987,-743.95,0.00052328,120]
[357377043,1744023062996,-500.0,0.00052328,120]
[357377044,1744023063006,-500.0,0.00052328,120]
[357377045,1744023063016,-500.0,0.00052328,120]
[357377046,1744023063026,-500.0,0.00052328,120]
[357377047,1744023063035,-500.0,0.00052328,120]
[357377048,1744023063046,-500.0,0.00052328,120]
[357377049,1744023063056,-614.35,0.00052328,120]
[357377050,1744023063066,-618.56,0.00052328,120]
[357377051,1744023063078,-515.39295671,0.00052328,120]
[357377052,1744023063088,-616.47,0.00052328,120]
[357377053,1744023063097,-500.0,0.00052328,120]
[357377054,1744023063108,-217.02953859,0.00052328,120]
[357377055,1744023063118,-500.0,0.00052328,120]
[357377056,1744023063127,-500.0,0.00052328,120]
[357377057,1744023063137,-500.0,0.00052328,120]
[357377058,1744023063146,-1000.0,0.00052328,120]
[357377059,1744023063156,-500.0,0.00052328,120]
[357377060,1744023063166,-500.0,0.00052328,120]
[357377061,1744023063175,-500.0,0.00052328,120]
[357377062,1744023063185,-500.0,0.00052328,120]
[357377063,1744023063195,-500.0,0.00052328,120]
[357377064,1744023063204,-500.0,0.00052328,120]
[357377065,1744023063213,-596.25,0.00052328,120]
[357377066,1744023063223,-500.0,0.00052328,120]
[357377067,1744023063232,-500.0,0.00052328,120]
[357377068,1744023063242,-629.1683263,0.00052328,120]
[357377069,1744023063252,-1062.8,0.00052328,120]
[357377070,1744023063261,-500.0,0.00052328,120]
[357377071,1744023063271,-500.0,0.00052328,120]
[357377072,1744023063280,-531.26,0.00052328,120]
[357377073,1744023063290,-500.0,0.00052328,120]
[357377074,1744023063301,-699.46,0.00052328,120]
[357377075,1744023063311,-500.0,0.00052328,120]
[357377076,1744023063322,-935.9,0.00052328,120]
[357377077,1744023063332,-772.97,0.00052328,120]
[357377078,1744023063341,-583.85,0.00052328,120]
[357377079,1744023063350,-542.23,0.00052328,120]
[357377080,1744023063360,-204.97864344,0.00052328,120]
[357377081,1744023063370,-500.0,0.00052328,60]
[357377082,1744023063379,-674.19,0.00052328,120]
[357377083,1744023063389,-500.0,0.00052328,120]
[357377084,1744023063398,-438.60909909,0.00052328,120]
[357377085,1744023063408,-284.16593631,0.00052328,120]
[357377086,1744023063418,-500.0,0.00052328,120]
[357377087,1744023063428,-2711.94,0.00052328,120]
[357377088,1744023063438,-500.0,0.00052328,120]
[357377089,1744023063447,-918.56,0.00052328,120]
[357377090,1744023063457,-500.0,0.00052328,120]
[357377091,1744023063467,-978.13,0.00052328,120]
[357377092,1744023063478,-500.0,0.00052328,120]
[357377093,1744023063488,-500.0,0.00052328,120]
[357377094,1744023063498,-500.0,0.00052328,120]
[357377095,1744023063508,-500.0,0.00052328,120]
[357377096,1744023063518,-500.0,0.00052328,120]
[357377097,1744023063528,-500.0,0.00052328,120]
[357377098,1744023063538,-500.0,0.00052328,120]
[357377099,1744023063548,-500.0,0.00052328,120]
[357377100,1744023063558,-500.0,0.00052328,120]
[357377101,1744023063569,-818.15,0.00052328,120]
[357377102,1744023063581,-763.94,0.00052328,120]
[357377103,1744023063591,-732.12,0.00052328,120]
[357377104,1744023063601,-625.72,0.00052328,120]
[357377105,1744023063610,-500.0,0.00052328,120]
[357377106,1744023063621,-500.0,0.00052328,120]
[357377107,1744023063630,-598.59773037,0.00052328,120]
[357377108,1744023063640,-500.0,0.00052328,120]
[357377109,1744023063650,-500.0,0.00052328,120]
[357377110,1744023063660,-500.0,0.00052328,120]
[357377111,1744023063671,-500.0,0.00052328,120]
[357377112,1744023063680,-500.0,0.00052328,120]
[357377113,1744023063690,-1174.6,0.00052328,120]
[357377114,1744023063700,-884.0,0.00052328,120]
[357377115,1744023063710,-500.0,0.00052328,120]
[357377116,1744023063720,-500.0,0.00052328,120]
[357377117,1744023063732,-605.04,0.00052328,120]
[357377118,1744023063741,-500.0,0.00052328,120]
[357377119,1744023063751,-500.0,0.00052328,120]
[357377120,1744023063761,-339.48140608,0.00052328,120]
[357377121,1744023063772,-500.0,0.00052328,120]
[357377122,1744023063782,-603.53,0.00052328,120]
[357377123,1744023063794,-500.0,0.00052328,120]
[357377124,1744023063804,-500.0,0.00052328,120]
[357377125,1744023063814,-500.0,0.00052328,120]
[357377126,1744023063824,-503.82,0.00052328,120]
[357377127,1744023063834,-500.0,0.00052328,120]
[357377128,1744023063843,-500.0,0.00052328,120]
[357377129,1744023063853,-516.66298698,0.00052328,120]
[357377130,1744023063863,-500.0,0.00052328,2]
[357377131,1744023063874,-500.0,0.00052328,120]
[357377132,1744023063884,-500.0,0.00052328,120]
[357377133,1744023063894,-872.59,0.00052328,120]
[357377134,1744023063904,-500.0,0.00052328,120]
[357377135,1744023063915,-1831.2,0.00052328,120]
[357377136,1744023063924,-500.0,0.00052328,120]
[357377137,1744023063935,-500.0,0.00052328,120]
[357377138,1744023063945,-500.0,0.00052328,120]
[357377139,1744023063955,-500.0,0.00052328,120]
[357377140,1744023063965,-500.0,0.00052328,120]
[357377141,1744023063974,-500.0,0.00052328,120]
[357377142,1744023063984,-684.54,0.00052328,120]